bitfinex/quotes_BTCUSD_20241102
["timestamp","ask_amount","ask_price","bid_price","bid_amount"]
[1730558773399,1.84688267,69119.0,69118.0,0.50382]
[1730558773780,1.84688267,69119.0,69118.0,0.50182]
[1730558773986,1.84888267,69119.0,69118.0,0.50182]
[1730558774202,1.84688267,69119.0,69118.0,0.50182]
[1730558774765,1.84788267,69119.0,69118.0,0.50182]
[1730558774993,1.92481813,69119.0,69118.0,0.50082]
[1730558775225,1.83345555,69119.0,69118.0,0.50182]
[1730558775439,1.84689056,69119.0,69118.0,0.50182]
[1730558775653,1.85289056,69119.0,69118.0,0.50082]
[1730558776078,1.85389056,69119.0,69118.0,0.50082]
[1730558777459,1.87540247,69119.0,69118.0,0.50082]
[1730558777862,2.01387977,69119.0,69118.0,0.50082]
[1730558778097,1.87540247,69119.0,69118.0,0.50082]
[1730558778759,1.85389922,69119.0,69118.0,0.50082]
[1730558780132,1.85289922,69119.0,69118.0,0.50082]
[1730558780392,1.84689922,69119.0,69118.0,0.50082]
[1730558780605,1.84689922,69119.0,69118.0,0.50582]
[1730558780768,1.84689922,69119.0,69118.0,0.50682]
[1730558781453,1.85189922,69119.0,69118.0,0.50682]
[1730558781654,1.85189922,69119.0,69118.0,0.50182]
[1730558782069,1.84215634,69119.0,69118.0,0.50182]
[1730558782448,1.84115634,69119.0,69118.0,0.50182]
[1730558782861,1.84215634,69119.0,69118.0,0.50182]
[1730558783448,1.83715634,69119.0,69118.0,0.50082]
[1730558783806,1.84215634,69119.0,69118.0,0.50082]
[1730558784639,1.85291146,69119.0,69118.0,0.50082]
[1730558784999,1.85291147,69119.0,69118.0,0.50082]
[1730558785467,1.83946772,69119.0,69118.0,0.50082]
[1730558785724,1.85291309,69119.0,69118.0,0.50082]
[1730558788281,1.87442979,69119.0,69118.0,0.50082]
[1730558788494,1.89164341,69119.0,69118.0,0.50082]
[1730558788806,1.89364341,69119.0,69118.0,0.50082]
[1730558789057,1.84146837,69119.0,69118.0,0.50082]
[1730558789218,1.89365353,69119.0,69118.0,0.50082]
[1730558789575,1.89365348,69119.0,69118.0,0.50082]
[1730558789805,1.8764389,69119.0,69118.0,0.50082]
[1730558790019,1.89165349,69119.0,69118.0,0.50082]
[1730558790222,1.8744389,69119.0,69118.0,0.50082]
[1730558792738,1.87443842,69119.0,69118.0,0.50082]
[1730558793872,1.89165455,69119.0,69118.0,0.50082]
[1730558794102,1.89165472,69119.0,69118.0,0.50082]
[1730558794486,2.00250083,69119.0,69118.0,0.50082]
[1730558796276,1.97453226,69119.0,69118.0,0.50082]
[1730558796541,2.00251063,69119.0,69118.0,0.50082]
[1730558796748,2.00250918,69119.0,69118.0,0.50082]
[1730558797684,2.00450918,69119.0,69118.0,0.50082]
[1730558797893,2.00250918,69119.0,69118.0,0.50082]
[1730558798116,1.98529317,69119.0,69118.0,0.50082]
[1730558798353,2.47634583,69119.0,69118.0,0.50082]
[1730558798565,2.49355802,69119.0,69118.0,0.50082]
[1730558798991,2.53658159,69119.0,69118.0,0.50082]
[1730558799210,2.53657584,69119.0,69118.0,0.50082]
[1730558799419,2.49355227,69119.0,69118.0,0.50082]
[1730558799666,2.51504263,69119.0,69118.0,0.50082]
[1730558799878,2.47362391,69119.0,69118.0,0.50082]
[1730558800091,2.51502881,69119.0,69118.0,0.50082]
[1730558800678,2.4041827,69119.0,69118.0,0.50082]
[1730558801041,2.2657054,69119.0,69118.0,0.50082]
[1730558801399,2.37654361,69119.0,69118.0,0.50082]
[1730558803224,2.37654726,69119.0,69118.0,0.50082]
[1730558803430,2.33513871,69119.0,69118.0,0.50082]
[1730558803647,2.34858397,69119.0,69118.0,0.50082]
[1730558803851,2.51502716,69119.0,69118.0,0.50082]
[1730558805512,2.47202251,69119.0,69118.0,0.50082]
[1730558805858,2.71680551,69119.0,69118.0,0.50082]
[1730558806318,2.63078637,69119.0,69118.0,0.50082]
[1730558806522,2.71680551,69119.0,69118.0,0.50082]
[1730558806698,2.73831162,69119.0,69118.0,0.50082]
[1730558806856,2.65229248,69119.0,69118.0,0.50082]
[1730558807054,2.58837522,69119.0,69118.0,0.50082]
[1730558807272,2.73429762,69119.0,69118.0,0.50082]
[1730558807515,2.65727295,69119.0,69118.0,0.50182]
[1730558807708,2.56100085,69119.0,69118.0,0.50182]
[1730558807929,2.55199926,69119.0,69118.0,0.50082]
[1730558808088,2.64821118,69119.0,69118.0,0.50182]
[1730558808291,2.66121163,69119.0,69118.0,0.50282]
[1730558808928,2.74723077,69119.0,69118.0,0.50282]
[1730558809791,2.66118156,69119.0,69118.0,0.50282]
[1730558810008,2.66118376,69119.0,69118.0,0.50282]
[1730558810588,2.47455762,69119.0,69118.0,0.50282]
[1730558810815,2.502494,69119.0,69118.0,0.50282]
[1730558811038,2.74711033,69119.0,69118.0,0.50282]
[1730558811247,2.68414056,69119.0,69118.0,0.50282]
[1730558811649,2.525494,69119.0,69118.0,0.50282]
[1730558811904,2.68412155,69119.0,69118.0,0.50282]
[1730558812356,2.68012155,69119.0,69118.0,0.50282]
[1730558812555,2.521494,69119.0,69118.0,0.50282]
[1730558812779,2.525494,69119.0,69118.0,0.50282]
[1730558812982,2.58994878,69119.0,69118.0,0.50282]
[1730558813482,2.525494,69119.0,69118.0,0.50282]
[1730558813932,2.58994878,69119.0,69118.0,0.50282]
[1730558814377,2.58992409,69119.0,69118.0,0.50282]
[1730558815400,2.58992409,69119.0,69118.0,0.00282]
[1730558815811,2.52546931,69119.0,69118.0,0.00282]
[1730558816063,2.56842435,69119.0,69118.0,0.00282]
[1730558816267,2.52546931,69119.0,69118.0,0.00282]
[1730558816756,2.68403227,69119.0,69118.0,0.00282]
[1730558817285,2.68403191,69119.0,69118.0,0.00282]
[1730558817928,2.68403167,69119.0,69118.0,0.00282]
[1730558818113,2.52546975,69119.0,69118.0,0.00282]
[1730558819696,2.68406436,69119.0,69118.0,0.00282]
[1730558820478,2.68406436,69119.0,69102.0,0.1936]
[1730558820479,0.123299,69102.0,69091.0,0.1936]
[1730558820687,0.1494753,69102.0,69091.0,0.1936]
[1730558820894,1.98722798,69102.0,69094.0,4.498e-05]
[1730558821096,1.95230665,69102.0,69094.0,4.498e-05]
[1730558821302,2.34412377,69102.0,69094.0,4.498e-05]
[1730558821519,0.25716711,69087.0,69086.0,0.0184349]
[1730558821740,0.51979704,69087.0,69086.0,0.0184349]
[1730558821939,0.51979704,69087.0,69078.0,0.00269977]
[1730558821940,0.146333,69079.0,69078.0,0.00269977]
[1730558822248,1.95609138,69079.0,69078.0,0.00269977]
[1730558822487,2.21990168,69079.0,69078.0,0.00269977]
[1730558822692,1.98370052,69079.0,69078.0,0.00265478]
[1730558822893,1.82107059,69079.0,69078.0,0.00265478]
[1730558823321,1.81607059,69079.0,69078.0,0.00265478]
[1730558825001,1.82007059,69079.0,69078.0,0.00265478]
[1730558825209,1.95854789,69079.0,69078.0,0.00265478]
[1730558825439,1.82007059,69079.0,69078.0,0.00265478]
[1730558825973,1.82007059,69079.0,69078.0,0.08515478]
[1730558826374,1.82007059,69079.0,69078.0,0.50265478]
[1730558826825,1.82507059,69079.0,69078.0,0.50265478]
[1730558827018,1.96352584,69079.0,69078.0,0.50265478]
[1730558827220,2.10200314,69079.0,69078.0,0.50265478]
[1730558827887,2.10400314,69079.0,69078.0,0.50265478]
[1730558828093,2.20533614,69079.0,69078.0,0.50265478]
[1730558828303,2.10200314,69079.0,69078.0,0.50265478]
[1730558828730,1.95952584,69079.0,69078.0,0.50265478]
[1730558829163,1.82707059,69079.0,69078.0,0.50265478]
[1730558829357,1.82207059,69079.0,69078.0,0.50265478]
[1730558829582,1.82707059,69079.0,69078.0,0.50265478]
[1730558829945,1.96752584,69079.0,69078.0,0.50265478]
[1730558830141,2.20733614,69079.0,69078.0,0.50265478]
[1730558830351,2.10600314,69079.0,69078.0,0.50265478]
[1730558830777,1.96754789,69079.0,69078.0,0.50265478]
[1730558831207,1.96754789,69079.0,69078.0,0.50347578]
[1730558833164,1.82907059,69079.0,69078.0,0.50347578]
[1730558834636,1.96752584,69079.0,69078.0,0.50347578]
[1730558834844,2.06885884,69079.0,69078.0,0.50347578]
[1730558835270,1.96752584,69079.0,69078.0,0.50347578]
[1730558836983,1.82907059,69079.0,69078.0,0.50347578]
[1730558838501,1.82207059,69079.0,69078.0,0.77687578]
[1730558838637,1.81907059,69079.0,69078.0,0.77687578]
[1730558838861,1.81407059,69079.0,69078.0,0.77687578]
[1730558839056,1.81907059,69079.0,69078.0,0.77687578]
[1730558839283,1.81707059,69079.0,69078.0,0.77687578]
[1730558839504,1.80407059,69079.0,69078.0,0.77687578]
[1730558839644,1.80407059,69079.0,69078.0,0.92833103]
[1730558839863,1.80607059,69079.0,69078.0,0.92833103]
[1730558840902,1.80507059,69079.0,69078.0,0.91533103]
[1730558841116,1.80407059,69079.0,69078.0,0.91533103]
[1730558841401,1.80607059,69079.0,69078.0,0.92933103]
[1730558841608,1.80607059,69079.0,69078.0,0.92833103]
[1730558841804,1.80507059,69079.0,69078.0,0.91533103]
[1730558842011,1.80907059,69079.0,69078.0,0.93033103]
[1730558842582,1.80707059,69079.0,69078.0,0.93033103]
[1730558847505,1.81207059,69079.0,69078.0,0.79187578]
[1730558847932,1.81407059,69079.0,69078.0,0.79187578]
[1730558848171,1.81207059,69079.0,69078.0,0.93033103]
[1730558848585,1.80707059,69079.0,69078.0,0.93033103]
[1730558851571,1.81207059,69079.0,69078.0,0.93033103]
[1730558851784,1.81407059,69079.0,69078.0,0.93033103]
[1730558855073,1.81207059,69079.0,69078.0,0.93033103]
[1730558855383,1.80707059,69079.0,69078.0,0.93033103]
[1730558856415,1.81207059,69079.0,69078.0,0.93033103]
[1730558856865,1.80707059,69079.0,69078.0,0.93033103]
[1730558858287,1.80207059,69079.0,69078.0,0.93033103]
[1730558859556,1.80207059,69079.0,69078.0,0.83033103]
[1730558859964,1.80207059,69079.0,69078.0,0.87355338]
[1730558860184,1.80207059,69079.0,69078.0,1.53033103]
[1730558860444,0.43761512,69079.0,69078.0,1.83813233]
[1730558860635,0.21654552,69098.0,69085.0,0.02893]
[1730558860852,0.21654552,69098.0,69097.0,0.1691013]
[1730558861080,0.21654552,69105.0,69097.0,0.1691013]
[1730558861081,0.21654552,69105.0,69104.0,0.1691013]
[1730558861525,0.65119,69105.0,69104.0,0.30755655]
[1730558862005,0.65619,69105.0,69104.0,0.30755655]
[1730558862226,0.65119,69105.0,69104.0,0.30755655]
[1730558862452,0.65319,69105.0,69104.0,0.32155655]
[1730558862679,0.65319,69105.0,69104.0,1.05155655]
[1730558864118,1.23202,69105.0,69104.0,1.05155655]
[1730558864344,1.23102,69105.0,69104.0,1.03855655]
[1730558864548,1.23302,69105.0,69104.0,0.86945525]
[1730558864777,1.23302,69105.0,69104.0,0.88345525]
[1730558864993,1.23302,69105.0,69104.0,0.65345525]
[1730558865218,1.23802,69105.0,69104.0,0.65345525]
[1730558866052,1.239662,69105.0,69104.0,0.65345525]
[1730558866256,1.237662,69105.0,69104.0,0.65345525]
[1730558866465,1.239662,69105.0,69104.0,0.65345525]
[1730558866677,1.239662,69105.0,69104.0,0.65895959]
[1730558866883,1.239662,69105.0,69104.0,0.6556252]
[1730558866884,1.237662,69105.0,69104.0,0.6556252]
[1730558867120,1.232662,69105.0,69104.0,0.6556252]
[1730558867536,1.811492,69105.0,69104.0,0.6556252]
[1730558867751,1.811492,69105.0,69104.0,0.8474252]
[1730558867959,1.811492,69105.0,69104.0,1.0774252]
[1730558871039,1.811492,69105.0,69104.0,0.8856252]
[1730558872496,1.811492,69105.0,69104.0,0.6556252]
[1730558875424,1.811492,69105.0,69104.0,0.6551252]
[1730558876078,1.811492,69105.0,69104.0,1.5242265]
[1730558877134,1.811492,69105.0,69104.0,0.8242265]
[1730558877776,1.811492,69105.0,69104.0,0.9023265]
[1730558878279,1.811492,69105.0,69104.0,0.9253265]
[1730558878860,1.811492,69105.0,69104.0,1.1126265]
[1730558880149,1.811492,69105.0,69104.0,1.8126265]
[1730558880360,1.811492,69105.0,69104.0,1.5472265]
[1730558881023,1.811492,69105.0,69104.0,1.3781252]
[1730558881438,1.811492,69105.0,69104.0,1.5472265]
[1730558883037,1.811492,69105.0,69104.0,1.3781252]
[1730558883240,1.811492,69105.0,69104.0,1.3551252]
[1730558885217,1.811492,69105.0,69104.0,1.3551252]
[1730558887150,1.811492,69105.0,69104.0,0.6551252]
[1730558888714,1.811492,69105.0,69104.0,0.8242265]
[1730558889786,1.811492,69105.0,69104.0,0.8250465]
[1730558890044,1.811492,69105.0,69104.0,1.1880465]
[1730558890884,1.811492,69105.0,69104.0,1.1740465]
[1730558891225,1.811492,69105.0,69104.0,1.2608665]
[1730558891430,1.811492,69105.0,69104.0,1.2748665]
[1730558891635,1.811492,69105.0,69104.0,1.1880465]
[1730558891857,1.811492,69105.0,69104.0,1.0189452]
[1730558892278,1.811492,69105.0,69104.0,1.0179452]
[1730558892279,1.810492,69105.0,69104.0,1.0179452]
[1730558892486,1.810492,69105.0,69104.0,1.0319452]
[1730558892775,1.810492,69105.0,69104.0,0.8949452]
[1730558892963,1.810492,69105.0,69104.0,0.6549452]
[1730558893634,1.810492,69105.0,69104.0,0.6409452]
[1730558893858,1.810492,69105.0,69104.0,0.6549452]
[1730558894271,1.810492,69105.0,69104.0,0.6409452]
[1730558894640,1.810492,69105.0,69104.0,0.6679452]
[1730558895739,1.810492,69105.0,69104.0,0.6409452]
[1730558896007,1.810492,69105.0,69104.0,0.6549452]
[1730558896185,1.810492,69105.0,69104.0,0.6689452]
[1730558896605,1.810492,69105.0,69104.0,0.6409452]
[1730558896838,1.810492,69105.0,69104.0,0.6549452]
[1730558897476,1.810492,69105.0,69104.0,0.6409452]
[1730558897705,1.810492,69105.0,69104.0,0.6689452]
[1730558899000,1.810492,69105.0,69104.0,0.6549452]
[1730558899416,1.810492,69105.0,69104.0,0.6689452]
[1730558901086,1.810492,69105.0,69104.0,0.7557652]
[1730558901315,1.810492,69105.0,69104.0,0.6689452]
[1730558902704,1.810492,69105.0,69104.0,0.8380465]
[1730558903115,1.810492,69105.0,69104.0,0.8610465]
[1730558903311,1.810492,69105.0,69104.0,1.0042175]
[1730558903932,1.810492,69105.0,69104.0,1.7042175]
[1730558904145,1.810492,69105.0,69104.0,1.6899765]
[1730558904359,1.810492,69105.0,69104.0,1.6610465]
[1730558905421,1.810492,69105.0,69104.0,1.6330465]
[1730558905579,1.810492,69105.0,69104.0,1.6610465]
[1730558905985,1.810492,69105.0,69104.0,1.6470465]
[1730558906234,1.810492,69105.0,69104.0,1.7768893]
[1730558906454,1.810492,69105.0,69104.0,1.7908893]
[1730558907348,1.810492,69105.0,69104.0,1.0908893]
[1730558908379,1.810492,69105.0,69104.0,0.9610465]
[1730558910149,1.810492,69105.0,69104.0,1.0908893]
[1730558910357,1.810492,69105.0,69104.0,1.7908893]
[1730558911043,1.810492,69105.0,69104.0,1.6610465]
[1730558911229,1.810492,69105.0,69104.0,1.7478665]
[1730558911962,1.810492,69105.0,69104.0,1.7338665]
[1730558912389,1.810492,69105.0,69104.0,1.7478665]
[1730558912821,1.810492,69105.0,69104.0,1.9169678]
[1730558912822,1.6930412,69105.0,69104.0,1.9169678]
[1730558913061,1.6930412,69105.0,69104.0,2.4578965]
[1730558913062,1.57917332,69105.0,69104.0,2.4578965]
[1730558913437,1.57917332,69105.0,69104.0,2.57385024]
[1730558913642,1.57917332,69105.0,69104.0,2.61678024]
[1730558914390,1.57917332,69105.0,69104.0,2.60278024]
[1730558914887,1.57917332,69105.0,69104.0,2.61678024]
[1730558915008,1.57917332,69105.0,69104.0,2.60278024]
[1730558915438,1.159302,69105.0,69104.0,2.60278024]
[1730558915639,1.092752,69105.0,69104.0,2.6559278]
[1730558915848,1.092752,69105.0,69104.0,3.8987278]
[1730558916511,1.092752,69105.0,69104.0,3.8847278]
[1730558916757,1.0798182,69105.0,69104.0,3.8847278]
[1730558916960,1.0798182,69105.0,69104.0,3.8987278]
[1730558917176,1.0798182,69105.0,69104.0,3.1987278]
[1730558917630,1.0798182,69105.0,69104.0,3.1847278]
[1730558917839,1.0798182,69105.0,69104.0,3.1987278]
[1730558918196,1.0798182,69105.0,69104.0,3.1847278]
[1730558918669,1.0798182,69105.0,69104.0,3.1987278]
[1730558918872,1.0798182,69105.0,69104.0,3.1847278]
[1730558919109,0.51885968,69105.0,69104.0,3.1987278]
[1730558919317,0.4938302,69105.0,69104.0,3.0296265]
[1730558919543,0.17237622,69105.0,69104.0,1.7868265]
[1730558919759,0.09194683,69105.0,69104.0,1.7868265]
[1730558919959,0.67077683,69105.0,69104.0,1.91666848]
[1730558920074,0.47973291,69105.0,69104.0,2.4868265]
[1730558920693,0.47973291,69105.0,69104.0,2.4728265]
[1730558920864,0.47973291,69105.0,69104.0,2.4868265]
[1730558921325,0.47973291,69105.0,69104.0,2.4728265]
[1730558921532,0.45984316,69105.0,69104.0,2.4728265]
[1730558922065,0.45260884,69105.0,69104.0,2.4728265]
[1730558922693,1.03143884,69105.0,69104.0,2.4868265]
[1730558923538,1.03143884,69105.0,69104.0,3.7296265]
[1730558923740,1.02221884,69105.0,69104.0,3.7296265]
[1730558924156,1.02221884,69105.0,69104.0,3.7156265]
[1730558924368,1.02221884,69105.0,69104.0,3.7016265]
[1730558924369,0.99327884,69105.0,69104.0,3.7016265]
[1730558924587,0.99491884,69105.0,69104.0,3.7016265]
[1730558924756,0.99491884,69105.0,69104.0,3.7296265]
[1730558925171,0.99491884,69105.0,69104.0,3.7156265]
[1730558925910,0.99491884,69105.0,69104.0,3.7296265]
[1730558926044,0.99491884,69105.0,69104.0,3.7016265]
[1730558927165,0.99491884,69105.0,69104.0,3.83125772]
[1730558927388,0.99491884,69105.0,69104.0,3.84525772]
[1730558927805,0.99491884,69105.0,69104.0,3.85925772]
[1730558928048,0.99491884,69105.0,69104.0,3.84525772]
[1730558928479,0.99491884,69105.0,69104.0,3.85925772]
[1730558928694,0.99491884,69105.0,69104.0,3.84525772]
[1730558928948,0.99491884,69105.0,69104.0,3.83125772]
[1730558929153,0.99491884,69105.0,69104.0,3.85925772]
[1730558929587,0.99491884,69105.0,69104.0,3.7156265]
[1730558929799,0.99491884,69105.0,69104.0,3.7296265]
[1730558930896,0.99491884,69105.0,69104.0,3.7156265]
[1730558931387,0.99491884,69105.0,69104.0,3.7296265]
[1730558931591,0.99491884,69105.0,69104.0,3.0685782]
[1730558931816,0.99491884,69105.0,69104.0,3.0545782]
[1730558932047,0.99491884,69105.0,69104.0,3.21216431]
[1730558932243,0.95305884,69105.0,69104.0,3.21216316]
[1730558932448,0.95305884,69105.0,69104.0,3.0825782]
[1730558933059,0.95305884,69105.0,69104.0,3.1055782]
[1730558933939,1.60424884,69105.0,69104.0,3.1055782]
[1730558934253,1.31003319,69105.0,69104.0,3.1843782]
[1730558936322,1.26841319,69105.0,69104.0,3.1843782]
[1730558936532,1.22588319,69105.0,69104.0,2.9292952]
[1730558936734,1.15506749,69105.0,69104.0,2.9292952]
[1730558937379,1.73389749,69105.0,69104.0,7.9401792]
[1730558937861,1.62607775,69105.0,69104.0,7.9401792]
[1730558938084,1.58247775,69105.0,69104.0,7.9401792]
[1730558939435,1.58247775,69105.0,69104.0,7.5748012]
[1730558940398,1.54028775,69105.0,69104.0,7.5748012]
[1730558940595,1.54028775,69105.0,69104.0,7.2800372]
[1730558941276,1.54028775,69105.0,69104.0,7.2012372]
[1730558941458,1.54028775,69105.0,69104.0,7.1507862]
[1730558941857,1.53582775,69105.0,69104.0,7.1507862]
[1730558942239,1.52455775,69105.0,69104.0,7.1507862]
[1730558942855,1.52455775,69105.0,69104.0,6.5608332]
[1730558945966,1.52455775,69105.0,69104.0,6.5592332]
[1730558947427,1.51844307,69105.0,69104.0,6.5592332]
[1730558947870,1.51844307,69105.0,69104.0,2.8488952]
[1730558948096,1.51844307,69105.0,69104.0,7.8597792]
[1730558948520,1.41802307,69105.0,69104.0,7.8597792]
[1730558949385,1.40992134,69105.0,69104.0,7.8597792]
[1730558949793,1.40992134,69105.0,69104.0,8.05136512]
[1730558950014,1.40992134,69105.0,69104.0,7.4753042]
[1730558950154,1.40992134,69105.0,69104.0,7.3629952]
[1730558950360,1.40992134,69105.0,69104.0,7.2484752]
[1730558950564,1.40992134,69105.0,69104.0,3.6973052]
[1730558950778,1.67692134,69105.0,69104.0,2.6390752]
[1730558951650,1.67692134,69105.0,69104.0,2.6250752]
[1730558952174,1.67692134,69105.0,69104.0,2.6390752]
[1730558952365,1.67692134,69105.0,69104.0,2.7250752]
[1730558952526,1.67692134,69105.0,69104.0,2.7390752]
[1730558952728,1.67692134,69105.0,69104.0,2.7250752]
[1730558952951,1.67692134,69105.0,69104.0,1.4822752]
[1730558953133,1.67692134,69105.0,69104.0,1.4962752]
[1730558953336,1.67692134,69105.0,69104.0,1.5828417]
[1730558953547,1.67692134,69105.0,69104.0,1.4822752]
[1730558953985,1.67692134,69105.0,69104.0,1.4962752]
[1730558954212,1.67692134,69105.0,69104.0,1.4673452]
[1730558956283,1.67692134,69105.0,69104.0,1.51062555]
[1730558956982,1.67692134,69105.0,69104.0,1.3673452]
[1730558957485,1.67892134,69105.0,69104.0,1.3673452]
[1730558957715,1.67892134,69105.0,69104.0,1.21370045]
[1730558958075,1.67892134,69105.0,69104.0,1.19970045]
[1730558958509,1.67892134,69105.0,69104.0,1.21370045]
[1730558958706,1.67892134,69105.0,69104.0,1.35544445]
[1730558959132,1.68392134,69105.0,69104.0,1.2309892]
[1730558959374,1.68892134,69105.0,69104.0,0.5309892]
[1730558959756,1.68892134,69105.0,69104.0,0.5169892]
[1730558959964,1.68892134,69105.0,69104.0,0.5309892]
[1730558960118,1.68392134,69105.0,69104.0,0.4528892]
[1730558960325,1.68892134,69105.0,69104.0,0.4528892]
[1730558960584,1.68892134,69105.0,69104.0,0.2528892]
[1730558960763,0.2865,69099.0,69098.0,0.00082]
[1730558960968,0.2865,69099.0,69098.0,0.13927525]
[1730558960969,1.69678134,69099.0,69098.0,0.13927525]
[1730558961789,1.69678134,69099.0,69098.0,0.63927525]
[1730558962033,1.69478134,69099.0,69098.0,0.63927525]
[1730558962218,1.69478134,69099.0,69098.0,0.65327525]
[1730558962422,1.68978134,69099.0,69098.0,0.65327525]
[1730558963089,1.49038134,69099.0,69098.0,0.87327525]
[1730558963278,1.40828134,69099.0,69098.0,0.87327525]
[1730558963886,1.40928134,69099.0,69098.0,0.88427525]
[1730558965173,1.40928134,69099.0,69098.0,0.91320525]
[1730558965921,1.40828134,69099.0,69098.0,0.90220525]
[1730558966134,1.40828134,69099.0,69098.0,0.91320525]
[1730558966341,1.40928134,69099.0,69098.0,0.91320525]
[1730558966759,1.40828134,69099.0,69098.0,0.90220525]
[1730558966975,1.40928134,69099.0,69098.0,0.88820525]
[1730558967223,1.41028134,69099.0,69098.0,0.89020525]
[1730558967738,1.40928134,69099.0,69098.0,0.88820525]
[1730558968001,1.41028134,69099.0,69098.0,0.89020525]
[1730558968212,1.40928134,69099.0,69098.0,1.15730655]
[1730558968629,1.40928134,69099.0,69098.0,1.15930655]
[1730558968851,1.40928134,69099.0,69098.0,1.17030655]
[1730558969050,1.40828134,69099.0,69098.0,1.51119955]
[1730558969258,1.40828134,69099.0,69098.0,1.51336953]
[1730558969384,1.40828134,69099.0,69098.0,1.50036953]
[1730558969614,1.40828134,69099.0,69098.0,1.51336953]
[1730558969824,1.40828134,69099.0,69098.0,1.32126823]
[1730558970205,1.40828134,69099.0,69098.0,0.97444523]
[1730558970376,1.40928134,69099.0,69098.0,0.98644523]
[1730558971555,1.40928134,69099.0,69098.0,0.88644523]
[1730558971556,1.49138134,69099.0,69098.0,0.88644523]
[1730558972993,1.49138134,69099.0,69098.0,0.66644523]
[1730558975737,1.49138134,69099.0,69098.0,0.65344523]
[1730558976273,1.49138134,69099.0,69098.0,0.66644523]
[1730558976627,1.49038134,69099.0,69098.0,0.65444523]
[1730558977118,1.49138134,69099.0,69098.0,0.66744523]
[1730558977890,1.49338134,69099.0,69098.0,0.66744523]
[1730558978091,1.49338134,69099.0,69098.0,0.52898998]
[1730558978092,1.49838134,69099.0,69098.0,0.52898998]
[1730558978575,1.49638134,69099.0,69098.0,0.52898998]
[1730558979327,1.49838134,69099.0,69098.0,0.52898998]
[1730558979561,1.49638134,69099.0,69098.0,0.51598998]
[1730558979811,2.14662134,69099.0,69098.0,0.50298998]
[1730558979945,2.14662134,69099.0,69098.0,0.52798998]
[1730558980154,2.14762134,69099.0,69098.0,0.52798998]
[1730558980778,2.14962134,69099.0,69098.0,0.52798998]
[1730558981224,2.34302134,69099.0,69098.0,0.52798998]
[1730558984298,2.34802134,69099.0,69098.0,0.52798998]
[1730558986912,2.65295389,69099.0,69098.0,0.20536796]
[1730558987171,2.65295389,69099.0,69087.0,0.02262602]
[1730558987172,0.0678,69088.0,69087.0,0.02262602]
[1730558987391,0.0678,69088.0,69085.0,0.21654552]
[1730558987392,0.01,69086.0,69085.0,0.21654552]
[1730558987621,0.18826134,69086.0,69085.0,0.21654552]
[1730558987823,2.06952134,69086.0,69078.0,0.21736652]
[1730558988050,0.005,69080.0,69078.0,0.35582177]
[1730558988308,0.51278475,69079.0,69078.0,0.85582177]
[1730558988528,0.51278475,69079.0,69078.0,0.63927625]
[1730558988529,1.92106609,69079.0,69078.0,0.63927625]
[1730558990161,1.92206609,69079.0,69078.0,0.64727625]
[1730558990802,1.92306609,69079.0,69078.0,0.64727625]
[1730558991026,2.01596609,69079.0,69078.0,0.508821]
[1730558994788,2.01096609,69079.0,69078.0,0.508821]
[1730558995007,2.01596609,69079.0,69078.0,0.508821]
[1730559001056,1.93306609,69079.0,69078.0,0.508821]
[1730559001282,1.92806609,69079.0,69078.0,0.508821]
[1730559001503,1.93306609,69079.0,69078.0,0.508821]
[1730559002186,1.92806609,69079.0,69078.0,0.508821]
[1730559002420,1.93306609,69079.0,69078.0,0.508821]
[1730559002892,1.92806609,69079.0,69078.0,0.508821]
[1730559003778,1.93306609,69079.0,69078.0,0.508821]
[1730559004528,1.93506609,69079.0,69078.0,0.508821]
[1730559004761,2.01596609,69079.0,69078.0,0.508821]
[1730559005448,2.01496609,69079.0,69078.0,0.500821]
[1730559005899,2.01596609,69079.0,69078.0,0.509821]
[1730559006371,2.01496609,69079.0,69078.0,0.509821]
[1730559006578,2.01596609,69079.0,69078.0,0.510821]
[1730559006793,2.01496609,69079.0,69078.0,0.509821]
[1730559007232,2.01596609,69079.0,69078.0,0.510821]
[1730559007480,2.01496609,69079.0,69078.0,0.501821]
[1730559007702,2.01496609,69079.0,69078.0,0.509821]
[1730559007703,2.01596609,69079.0,69078.0,0.509821]
[1730559009524,1.93506609,69079.0,69078.0,0.509821]
[1730559010939,1.93006609,69079.0,69078.0,0.509821]
[1730559013027,1.92806609,69079.0,69078.0,0.509821]
[1730559013256,1.91806609,69079.0,69078.0,0.509821]
[1730559013480,1.91806609,69079.0,69078.0,0.91157625]
[1730559014175,1.91706609,69079.0,69078.0,0.90357625]
[1730559014406,1.91706609,69079.0,69078.0,0.90257625]
[1730559014628,1.91706609,69079.0,69078.0,0.91057625]
[1730559015313,1.91606609,69079.0,69078.0,0.90257625]
[1730559015767,1.91706609,69079.0,69078.0,0.90857625]
[1730559016419,1.91706609,69079.0,69078.0,0.91957625]
[1730559016613,1.91706609,69079.0,69078.0,1.61357625]
[1730559016778,1.91870609,69079.0,69078.0,1.61357625]
[1730559016992,1.91870609,69079.0,69078.0,1.61257625]
[1730559017195,1.91870609,69079.0,69078.0,1.62257625]
[1730559019329,1.91870609,69079.0,69078.0,1.65153625]
[1730559025784,1.91870609,69079.0,69078.0,1.62257625]
[1730559027555,1.91870609,69079.0,69078.0,1.66583061]
[1730559028258,1.91870609,69079.0,69078.0,1.62257625]
[1730559028651,1.91870609,69079.0,69078.0,1.66583061]
[1730559029063,1.92370609,69079.0,69078.0,1.26407536]
[1730559029234,1.92370609,69079.0,69078.0,1.220821]
[1730559029464,1.92570609,69079.0,69078.0,1.220821]
[1730559030037,1.92570609,69079.0,69078.0,0.520821]
[1730559030250,1.93070609,69079.0,69078.0,0.520821]
[1730559030454,1.93070609,69079.0,69078.0,0.510821]
[1730559030734,1.93070609,69079.0,69078.0,0.511821]
[1730559030940,2.01120609,69079.0,69078.0,0.517821]
[1730559031560,2.01120609,69079.0,69078.0,0.506821]
[1730559031561,2.01020609,69079.0,69078.0,0.506821]
[1730559031976,2.01020609,69079.0,69074.0,0.000818]
[1730559031977,0.017,69075.0,69074.0,0.000818]
[1730559032194,2.10216739,69075.0,69074.0,0.000818]
[1730559033074,2.10216739,69075.0,69074.0,0.500818]
[1730559033282,2.11290804,69075.0,69074.0,0.500818]
[1730559033491,2.10216739,69075.0,69074.0,0.500818]
[1730559034198,2.24064469,69075.0,69074.0,0.500818]
[1730559034413,2.24364469,69075.0,69074.0,0.500818]
[1730559034629,2.10916739,69075.0,69074.0,0.500818]
[1730559044266,2.10416739,69075.0,69074.0,0.500818]
[1730559044512,1.93506609,69075.0,69074.0,0.500818]
[1730559044738,2.10416739,69075.0,69074.0,0.500818]
[1730559048144,2.18886739,69075.0,69074.0,0.500818]
[1730559049290,2.52442394,69075.0,69074.0,0.500818]
[1730559049507,2.62576294,69075.0,69074.0,0.500818]